fUSD/lending_fUSD_20250804
["ID","MTS","AMOUNT","RATE_DAILY","PERIOD"]
[377180702,1754268689051,-400.0,0.00050036,120]
[377180703,1754268689060,-724.66,0.00050036,120]
[377180704,1754268689070,-881.24,0.00050036,120]
[377180705,1754268689079,-520.555924,0.00050036,120]
[377180706,1754268689089,-456.99,0.00050036,120]
[377180707,1754268689099,-520.555924,0.00050036,120]
[377180708,1754268689109,-980.28,0.00050036,120]
[377180709,1754268689119,-400.0,0.00050036,120]
[377180710,1754268689129,-151.0,0.00050036,90]
[377180711,1754268689139,-300.5552248,0.00050036,120]
[377180712,1754268689148,-510.92,0.00050036,120]
[377180713,1754268689158,-400.0,0.00050036,120]
[377180714,1754268689168,-174.594282,0.00050036,120]
[377180715,1754268689177,-174.594282,0.00050036,120]
[377180716,1754268689187,-400.0,0.00050036,120]
[377180717,1754268689197,-400.0,0.00050036,120]
[377180718,1754268689206,-400.0,0.00050036,120]
[377180719,1754268689215,-459.38,0.00050036,120]
[377180720,1754268689224,-400.0,0.00050036,120]
[377180721,1754268689234,-400.0,0.00050036,120]
[377180722,1754268689243,-400.0,0.00050036,120]
[377180723,1754268689252,-400.0,0.00050036,120]
[377180724,1754268689262,-400.0,0.00050036,120]
[377180725,1754268689272,-400.0,0.00050036,120]
[377180726,1754268689281,-400.0,0.00050036,120]
[377180727,1754268689291,-400.0,0.00050036,120]
[377180728,1754268689300,-611.13,0.00050036,120]
[377180729,1754268689310,-657.96,0.00050036,120]
[377180730,1754268689320,-1601.2,0.00050036,120]
[377180731,1754268689329,-400.0,0.00050036,120]
[377180732,1754268689339,-529.68,0.00050036,120]
[377180733,1754268689349,-400.0,0.00050036,120]
[377180734,1754268689359,-927.89,0.00050036,120]
[377180735,1754268689368,-150.0,0.00050076,7]
[377180736,1754268689378,-150.0,0.0005008,30]
[377180737,1754268689387,-150.0,0.00050131,7]
[377180738,1754268689396,-855.13,0.00050135,120]
[377180739,1754268689406,-1725.51780784,0.00050136,30]
[377180740,1754268689415,-154.121989,0.00050136,120]
[377180741,1754268689425,-151.0,0.00050136,120]
[377180742,1754268689434,-151.0,0.00050136,120]
[377180743,1754268689443,-151.0,0.00050136,120]
[377180744,1754268689453,-400.0,0.00050136,120]
[377180745,1754268689462,-151.0,0.00050136,120]
[377180746,1754268689471,-282.737341,0.00050136,120]
[377180747,1754268689481,-151.0,0.00050136,120]
[377180748,1754268689490,-282.737341,0.00050136,120]
[377180749,1754268689499,-400.0,0.00050136,120]
[377180750,1754268689508,-400.0,0.00050136,120]
[377180751,1754268689517,-1244.74,0.00050136,120]
[377180752,1754268689527,-826.02,0.00050136,120]
[377180753,1754268689536,-453.71,0.00050136,120]
[377180754,1754268689546,-151.0,0.00050136,120]
[377180755,1754268689555,-661.4,0.00050136,120]
[377180756,1754268689564,-664.09,0.00050136,120]
[377180757,1754268689574,-400.0,0.00050136,120]
[377180758,1754268689583,-400.0,0.00050136,120]
[377180759,1754268689594,-400.0,0.00050136,120]
[377180760,1754268689603,-400.0,0.00050136,120]
[377180761,1754268689613,-400.0,0.00050136,120]
[377180762,1754268689623,-855.87,0.00050136,120]
[377180763,1754268689632,-400.0,0.00050136,120]
[377180764,1754268689642,-400.0,0.00050136,120]
[377180765,1754268689652,-467.5,0.00050136,120]
[377180766,1754268689661,-598.51,0.00050136,30]
[377180767,1754268689671,-1194.47,0.00050136,120]
[377180768,1754268689684,-400.0,0.00050136,120]
[377180769,1754268689697,-400.0,0.00050136,120]
[377180770,1754268689707,-400.0,0.00050136,120]
[377180771,1754268689716,-510.02,0.00050136,120]
[377180772,1754268689726,-718.03,0.00050136,120]
[377180773,1754268689736,-418.52,0.00050136,120]
[377180774,1754268689746,-400.0,0.00050136,120]
[377180775,1754268689756,-400.0,0.00050136,120]
[377180776,1754268689767,-489.19,0.00050136,120]
[377180777,1754268689777,-1095.36,0.00050136,120]
[377180778,1754268689786,-400.0,0.00050136,120]
[377180779,1754268689796,-1000.0,0.00050136,120]
[377180780,1754268689806,-990.86,0.00050136,120]
[377180781,1754268689815,-400.0,0.00050136,120]
[377180782,1754268689824,-400.0,0.00050136,120]
[377180783,1754268689834,-400.0,0.00050136,120]
[377180784,1754268689845,-850.97,0.00050136,120]
[377180785,1754268689855,-865.45,0.00050136,120]
[377180786,1754268689865,-400.0,0.00050136,120]
[377180787,1754268689875,-1434.0,0.00050136,120]
[377180788,1754268689885,-607.27,0.00050136,120]
[377180789,1754268689894,-400.0,0.00050136,120]
[377180790,1754268689904,-219.551219,0.00050136,120]
[377180791,1754268689914,-400.0,0.00050136,120]
[377180792,1754268689924,-675.28,0.00050136,120]
[377180793,1754268689934,-400.0,0.00050136,120]
[377180794,1754268689943,-400.0,0.00050136,7]
[377180795,1754268689953,-400.0,0.00050136,120]
[377180796,1754268689963,-151.0,0.00050136,120]
[377180797,1754268689973,-219.551219,0.00050136,120]
[377180798,1754268689983,-400.0,0.00050136,120]
[377180799,1754268689993,-348.01171787,0.00050136,120]
[377180800,1754268690002,-400.0,0.00050136,120]
[377180801,1754268690012,-400.0,0.00050136,120]
[377180802,1754268690022,-400.0,0.00050136,120]
[377180803,1754268690031,-540.31870255,0.00050136,120]
[377180804,1754268690041,-400.0,0.00050136,120]
[377180805,1754268690051,-286.524899,0.00050136,120]
[377180806,1754268690061,-358.33310211,0.00050136,120]
[377180807,1754268690071,-750.62,0.00050136,120]
[377180808,1754268690080,-492.25,0.00050136,120]
[377180809,1754268690089,-286.524899,0.00050136,120]
[377180810,1754268690100,-400.0,0.00050136,120]
[377180811,1754268690110,-400.0,0.00050136,120]
[377180812,1754268690119,-177.237494,0.00050136,120]
[377180813,1754268690129,-177.237494,0.00050136,120]
[377180814,1754268690138,-400.0,0.00050136,120]
[377180815,1754268690148,-787.81,0.00050136,120]
[377180816,1754268690158,-565.68,0.00050136,120]
[377180817,1754268690167,-400.0,0.00050136,120]
[377180818,1754268690176,-900.36,0.00050136,120]
[377180819,1754268690186,-400.0,0.00050136,120]
[377180820,1754268690198,-883.51,0.00050136,120]
[377180821,1754268690207,-975.62,0.00050136,120]
[377180822,1754268690216,-400.0,0.00050136,120]
[377180823,1754268690226,-990.06,0.00050136,120]
[377180824,1754268690236,-870.66,0.00050136,120]
[377180825,1754268690245,-1058.79,0.00050136,120]
[377180826,1754268690255,-1110.44,0.00050136,120]
[377180827,1754268690264,-151.0,0.00050136,120]
[377180828,1754268690274,-151.0,0.00050136,120]
[377180829,1754268690283,-151.0,0.00050136,120]
[377180830,1754268690292,-400.0,0.00050136,120]
[377180831,1754268690301,-553.62,0.00050136,120]
[377180832,1754268690311,-798.77,0.00050136,120]
[377180833,1754268690320,-1232.01,0.00050136,120]
[377180834,1754268690329,-1443.52,0.00050136,120]
[377180835,1754268690339,-400.0,0.00050136,120]
[377180836,1754268690351,-1344.32,0.00050136,120]
[377180837,1754268690361,-400.0,0.00050136,120]
[377180838,1754268690370,-1013.93,0.00050136,120]
[377180839,1754268690379,-400.0,0.00050136,120]
[377180840,1754268690473,-658.48,0.00050136,120]
[377180841,1754268690483,-871.17,0.00050136,120]
[377180842,1754268690492,-400.0,0.00050136,120]
[377180843,1754268690501,-151.0,0.00050136,120]
[377180844,1754268690510,-702.32,0.00050136,120]
[377180845,1754268690519,-400.0,0.00050136,120]
[377180846,1754268690528,-400.0,0.00050136,120]
[377180847,1754268690538,-400.0,0.00050136,120]
[377180848,1754268690547,-400.0,0.00050136,120]
[377180849,1754268690557,-545.46,0.00050136,120]
[377180850,1754268690566,-556.94,0.00050136,120]
[377180851,1754268690575,-151.0,0.00050136,120]
[377180852,1754268690585,-442.97,0.00050136,120]
[377180853,1754268690595,-400.0,0.00050136,120]
[377180854,1754268690604,-602.84,0.00050136,120]
[377180855,1754268690613,-400.0,0.00050136,120]
[377180856,1754268690625,-400.0,0.00050136,120]
[377180857,1754268690634,-457.77,0.00050136,120]
[377180858,1754268690643,-703.12,0.00050136,120]
[377180859,1754268690653,-857.91,0.00050136,120]
[377180860,1754268690662,-705.48,0.00050136,120]
[377180861,1754268690672,-400.0,0.00050136,120]
[377180862,1754268690682,-400.0,0.00050136,120]
[377180863,1754268690693,-871.66,0.00050136,120]
[377180864,1754268690702,-400.0,0.00050136,120]
[377180865,1754268690712,-400.0,0.00050136,120]
[377180866,1754268690722,-400.0,0.00050136,120]
[377180867,1754268690731,-1332.56,0.00050136,120]
[377180868,1754268690740,-1325.47,0.00050136,120]
[377180869,1754268690749,-400.0,0.00050136,120]
[377180870,1754268690758,-689.05,0.00050136,120]
[377180871,1754268690767,-400.0,0.00050136,120]
[377180872,1754268690776,-1436.9,0.00050136,120]
[377180873,1754268690785,-1022.67,0.00050136,120]
[377180874,1754268690794,-462.19,0.00050136,120]
[377180875,1754268690804,-400.0,0.00050136,120]
[377180876,1754268690813,-400.0,0.00050136,120]
[377180877,1754268690822,-1537.44,0.00050136,120]
[377180878,1754268690831,-400.0,0.00050136,120]
[377180879,1754268690840,-841.11,0.00050136,120]
[377180880,1754268690851,-400.0,0.00050136,120]
[377180881,1754268690860,-664.01,0.00050136,120]
[377180882,1754268690870,-151.0,0.00050136,120]
[377180883,1754268690880,-400.0,0.00050136,120]
[377180884,1754268690890,-452.74,0.00050136,120]
[377180885,1754268690899,-1114.01,0.00050136,120]
[377180886,1754268690908,-891.04,0.00050136,120]
[377180887,1754268690918,-771.0,0.00050136,120]
[377180888,1754268690927,-400.0,0.00050136,120]
[377180889,1754268690937,-400.0,0.00050136,120]
[377180890,1754268690946,-400.0,0.00050136,120]
[377180891,1754268690956,-1272.49,0.00050136,120]
[377180892,1754268690965,-458.09,0.00050136,120]
[377180893,1754268690974,-400.0,0.00050136,120]
[377180894,1754268690984,-1179.25,0.00050136,120]
[377180895,1754268690993,-484.25,0.00050136,60]
[377180896,1754268691003,-400.0,0.00050136,120]
[377180897,1754268691012,-151.0,0.00050136,120]
[377180898,1754268691021,-414.36,0.00050136,120]
[377180899,1754268691030,-400.0,0.00050136,120]
[377180900,1754268691039,-400.0,0.00050136,120]
[377180901,1754268691049,-400.0,0.00050136,120]
[377180902,1754268691058,-400.0,0.00050136,120]
[377180903,1754268691068,-726.76,0.00050136,120]
[377180904,1754268691077,-879.77,0.00050136,120]
[377180905,1754268691087,-908.23,0.00050136,120]
[377180906,1754268691096,-178.81719006,0.00050136,120]
[377180907,1754268691105,-1411.22,0.00050136,120]
[377180908,1754268691115,-400.0,0.00050136,120]
[377180909,1754268691124,-619.25,0.00050136,120]
[377180910,1754268691133,-400.0,0.00050136,120]
[377180911,1754268691142,-2247.490381,0.00050136,120]
[377180912,1754268691152,-400.0,0.00050136,120]
[377180913,1754268691162,-151.0,0.00050136,120]
[377180914,1754268691171,-400.0,0.00050136,120]
[377180915,1754268691179,-400.0,0.00050136,120]
[377180916,1754268691189,-559.47,0.00050136,120]
[377180917,1754268691198,-400.0,0.00050136,120]
[377180918,1754268691208,-151.0,0.00050136,120]
[377180919,1754268691217,-400.0,0.00050136,120]
[377180920,1754268691235,-400.0,0.00050136,120]
[377180921,1754268691244,-1917.81123,0.00050136,120]
[377180922,1754268691254,-609.62,0.00050136,120]
[377180923,1754268691263,-2057.412942,0.00050136,120]
[377180924,1754268691272,-151.0,0.00050136,120]
[377180925,1754268691282,-400.0,0.00050136,120]
[377180926,1754268691291,-400.0,0.00050136,120]
[377180927,1754268691300,-400.0,0.00050136,120]
[377180928,1754268691309,-647.79,0.00050136,120]
[377180929,1754268691318,-400.0,0.00050136,120]
[377180930,1754268691328,-400.0,0.00050136,120]
[377180931,1754268691338,-642.74,0.00050136,120]
[377180932,1754268691348,-157.054446,0.00050136,120]
[377180933,1754268691357,-400.0,0.00050136,120]
[377180934,1754268691366,-400.0,0.00050136,120]
[377180935,1754268691376,-461.68,0.00050136,120]
[377180936,1754268691385,-155.312005,0.00050136,120]
[377180937,1754268691394,-637.63,0.00050136,120]
[377180938,1754268691403,-1766.94,0.00050136,120]
[377180939,1754268691412,-400.0,0.00050136,120]
[377180940,1754268691421,-400.0,0.00050136,120]
[377180941,1754268691431,-400.0,0.00050136,120]
[377180942,1754268691440,-400.0,0.00050136,120]
[377180943,1754268691450,-400.0,0.00050136,120]
[377180944,1754268691460,-937.13,0.00050136,120]
[377180945,1754268691469,-400.0,0.00050136,120]
[377180946,1754268691479,-151.0,0.00050136,120]
[377180947,1754268691488,-1018.9,0.00050136,120]
[377180948,1754268691497,-400.0,0.00050136,120]
[377180949,1754268691506,-151.0,0.00050136,120]
[377180950,1754268691515,-1452.21,0.00050136,120]
[377180951,1754268691524,-151.0,0.00050136,120]
[377180952,1754268691534,-682.6,0.00050136,120]
[377180953,1754268691543,-688.82,0.00050136,120]
[377180954,1754268691552,-400.0,0.00050136,120]
[377180955,1754268691561,-400.0,0.00050136,120]
[377180956,1754268691570,-528.094712,0.00050136,120]
[377180957,1754268691579,-400.0,0.00050136,120]
[377180958,1754268691589,-400.0,0.00050136,120]
[377180959,1754268691597,-400.0,0.00050136,120]
[377180960,1754268691607,-400.0,0.00050136,120]
[377180961,1754268691617,-400.0,0.00050136,120]
[377180962,1754268691626,-400.0,0.00050136,120]
[377180963,1754268691635,-153.031442,0.00050136,120]
[377180964,1754268691644,-970.46,0.00050136,120]
[377180965,1754268691654,-400.0,0.00050136,120]
[377180966,1754268691663,-400.0,0.00050136,120]
[377180967,1754268691672,-151.0,0.00050136,120]
[377180968,1754268691682,-400.0,0.00050136,120]
[377180969,1754268691693,-151.0,0.00050136,120]
[377180970,1754268691703,-400.0,0.00050136,120]
[377180971,1754268691712,-400.0,0.00050136,120]
[377180972,1754268691723,-167.845673,0.00050136,120]
[377180973,1754268691731,-1380.71,0.00050136,120]
[377180974,1754268691741,-535.75,0.00050136,120]
[377180975,1754268691751,-777.09,0.00050136,120]
[377180976,1754268691761,-400.0,0.00050136,120]
[377180977,1754268691771,-268.2771,0.00050136,120]
[377180978,1754268691781,-370.01374094,0.00050136,120]
[377180979,1754268691790,-821.49,0.00050136,120]
[377180980,1754268691800,-1683.71,0.00050136,120]
[377180981,1754268691809,-400.0,0.00050136,120]
[377180982,1754268691819,-400.0,0.00050136,120]
[377180983,1754268691829,-400.0,0.00050136,120]
[377180984,1754268691840,-400.0,0.00050136,120]
[377180985,1754268691851,-400.0,0.00050136,120]
[377180986,1754268691860,-400.0,0.00050136,120]
[377180987,1754268691869,-400.0,0.00050136,120]
[377180988,1754268691879,-441.1,0.00050136,120]
[377180989,1754268691888,-153.740244,0.00050136,120]
[377180990,1754268691897,-940.26,0.00050136,120]
[377180991,1754268691906,-400.0,0.00050136,120]
[377180992,1754268691916,-1587.13,0.00050136,120]
[377180993,1754268691925,-400.0,0.00050136,120]
[377180994,1754268691934,-716.15,0.00050136,120]
[377180995,1754268691943,-400.0,0.00050136,120]
[377180996,1754268691953,-400.0,0.00050136,120]
[377180997,1754268691962,-400.0,0.00050136,120]
[377180998,1754268691971,-1505.99,0.00050136,120]
[377180999,1754268691981,-151.0,0.00050136,60]
[377181000,1754268691990,-1532.73,0.00050136,120]
[377181001,1754268692000,-1445.81,0.00050136,120]
[377181002,1754268692009,-400.0,0.00050136,120]
[377181003,1754268692018,-400.0,0.00050136,120]
[377181004,1754268692028,-400.0,0.00050136,120]
[377181005,1754268692037,-400.0,0.00050136,120]
[377181006,1754268692047,-489.52792879,0.00050136,120]
[377181007,1754268692056,-400.0,0.00050136,120]
[377181008,1754268692066,-475.81,0.00050136,120]
[377181009,1754268692075,-500.0,0.00050136,120]
[377181010,1754268692084,-811.21,0.00050136,120]
[377181011,1754268692094,-779.09,0.00050136,120]
[377181012,1754268692104,-628.6,0.00050136,120]
[377181013,1754268692113,-400.0,0.00050136,120]
[377181014,1754268692122,-583.94,0.00050136,120]
[377181015,1754268692131,-400.0,0.00050136,120]
[377181016,1754268692140,-1655.42,0.00050136,120]
[377181017,1754268692150,-216.07718622,0.00050136,120]
[377181018,1754268692159,-400.0,0.00050136,120]
[377181019,1754268692168,-400.0,0.00050136,120]
[377181020,1754268692178,-400.0,0.00050136,120]
[377181021,1754268692187,-400.0,0.00050136,120]
[377181022,1754268692196,-519.83,0.00050136,120]
[377181023,1754268692206,-400.0,0.00050136,120]
[377181024,1754268692215,-738.64,0.00050136,120]
[377181025,1754268692224,-400.0,0.00050136,120]
[377181026,1754268692234,-400.0,0.00050136,120]
[377181027,1754268692242,-470.4391382,0.00050136,120]
[377181028,1754268692252,-151.0,0.00050136,120]
[377181029,1754268692262,-1676.12,0.00050136,120]
[377181030,1754268692271,-400.0,0.00050136,120]
[377181031,1754268692281,-400.0,0.00050136,120]
[377181032,1754268692290,-400.0,0.00050136,120]
[377181033,1754268692299,-400.0,0.00050136,120]
[377181034,1754268692308,-400.0,0.00050136,120]
[377181035,1754268692318,-907.07,0.00050136,120]
[377181036,1754268692327,-417.446691,0.00050136,120]
[377181037,1754268692336,-400.0,0.00050136,120]
[377181038,1754268692346,-400.0,0.00050136,120]
[377181039,1754268692356,-909.63,0.00050136,120]
[377181040,1754268692366,-1111.36,0.00050136,120]
[377181041,1754268692375,-400.0,0.00050136,120]
[377181042,1754268692384,-417.446691,0.00050136,120]
[377181043,1754268692393,-400.0,0.00050136,120]
[377181044,1754268692402,-673.74,0.00050136,120]
[377181045,1754268692412,-483.68,0.00050136,120]
[377181046,1754268692421,-864.65,0.00050136,60]
[377181047,1754268692430,-449.96429867,0.00050136,120]
[377181048,1754268692439,-400.0,0.00050136,120]
[377181049,1754268692448,-400.0,0.00050136,120]
[377181050,1754268692457,-1503.61,0.00050136,120]
[377181051,1754268692467,-400.0,0.00050136,120]
[377181052,1754268692476,-391.61814496,0.00050136,120]
[377181053,1754268692485,-400.0,0.00050136,120]
[377181054,1754268692494,-400.0,0.00050136,120]
[377181055,1754268692503,-400.0,0.00050136,120]
[377181056,1754268692512,-415.28,0.00050136,120]
[377181057,1754268692521,-434.63,0.00050136,120]
[377181058,1754268692531,-400.0,0.00050136,120]
[377181059,1754268692540,-151.0,0.00050136,120]
[377181060,1754268692549,-478.68,0.00050136,120]
[377181061,1754268692558,-400.0,0.00050136,120]
[377181062,1754268692567,-762.05,0.00050136,120]
[377181063,1754268692577,-383.62360085,0.00050136,120]
[377181064,1754268692586,-400.0,0.00050136,120]
[377181065,1754268692595,-400.0,0.00050136,120]
[377181066,1754268692605,-400.0,0.00050136,120]
[377181067,1754268692614,-400.0,0.00050136,120]
[377181068,1754268692624,-400.0,0.00050136,120]
[377181069,1754268692634,-151.0,0.00050136,120]
[377181070,1754268692644,-867.68,0.00050136,120]
[377181071,1754268692655,-400.0,0.00050136,120]
[377181072,1754268692666,-400.0,0.00050136,120]
[377181073,1754268692677,-1529.64,0.00050136,120]
[377181074,1754268692688,-1514.52,0.00050136,120]
[377181075,1754268692698,-234.038804,0.00050136,120]
[377181076,1754268692707,-888.99,0.00050136,120]
[377181077,1754268692716,-400.0,0.00050136,120]
[377181078,1754268692726,-234.038804,0.00050136,120]
[377181079,1754268692735,-400.0,0.00050136,120]
[377181080,1754268692744,-400.0,0.00050136,120]
[377181081,1754268692753,-1572.71,0.00050136,120]
[377181082,1754268692762,-400.0,0.00050136,120]
[377181083,1754268692772,-400.0,0.00050136,120]
[377181084,1754268692781,-667.29,0.00050136,120]
[377181085,1754268692791,-400.0,0.00050136,120]
[377181086,1754268692800,-400.0,0.00050136,120]
[377181087,1754268692809,-400.0,0.00050136,120]
[377181088,1754268692818,-400.0,0.00050136,120]
[377181089,1754268692827,-560.16,0.00050136,120]
[377181090,1754268692836,-974.46,0.00050136,120]
[377181091,1754268692845,-4405.19,0.00050136,120]
[377181092,1754268692854,-847.66,0.00050136,120]
[377181093,1754268692863,-400.0,0.00050136,120]
[377181094,1754268692872,-1044.37,0.00050136,120]
[377181095,1754268692881,-1027.62,0.00050136,120]
[377181096,1754268692891,-400.0,0.00050136,120]
[377181097,1754268692900,-400.0,0.00050136,120]
[377181098,1754268692910,-400.0,0.00050136,120]
[377181099,1754268692919,-151.0,0.00050136,120]
[377181100,1754268692929,-400.0,0.00050136,120]
[377181101,1754268692938,-400.0,0.00050136,120]
[377181102,1754268692948,-411.34,0.00050136,120]
[377181103,1754268692957,-247.269414,0.00050136,120]
[377181104,1754268692966,-773.44,0.00050136,120]
[377181105,1754268692975,-400.0,0.00050136,120]
[377181106,1754268692985,-1164.51,0.00050136,120]
[377181107,1754268692994,-400.0,0.00050136,120]
[377181108,1754268693003,-952.78,0.00050136,120]
[377181109,1754268693013,-400.0,0.00050136,120]
[377181110,1754268693022,-247.269414,0.00050136,120]
[377181111,1754268693032,-400.0,0.00050136,120]
[377181112,1754268693041,-400.0,0.00050136,120]
[377181113,1754268693051,-681.3,0.00050136,120]
[377181114,1754268693060,-400.0,0.00050136,120]
[377181115,1754268693070,-400.0,0.00050136,120]
[377181116,1754268693081,-1226.55,0.00050136,120]
[377181117,1754268693091,-400.0,0.00050136,120]
[377181118,1754268693101,-1342.41,0.00050136,30]
[377181119,1754268693111,-1018.3,0.00050136,120]
[377181120,1754268693121,-400.0,0.00050136,120]
[377181121,1754268693131,-400.0,0.00050136,120]
[377181122,1754268693141,-400.0,0.00050136,120]
[377181123,1754268693151,-400.0,0.00050136,120]
[377181124,1754268693161,-400.0,0.00050136,120]
[377181125,1754268693171,-593.66,0.00050136,120]
[377181126,1754268693182,-621.0,0.00050136,120]
[377181127,1754268693192,-400.0,0.00050136,120]
[377181128,1754268693202,-1037.22,0.00050136,120]
[377181129,1754268693211,-613.4,0.00050136,120]
[377181130,1754268693221,-400.0,0.00050136,120]
[377181131,1754268693231,-400.0,0.00050136,120]
[377181132,1754268693241,-665.48,0.00050136,120]
[377181133,1754268693252,-1384.85,0.00050136,120]
[377181134,1754268693262,-512.74,0.00050136,120]
[377181135,1754268693272,-400.0,0.00050136,120]
[377181136,1754268693283,-400.0,0.00050136,120]
[377181137,1754268693293,-400.0,0.00050136,120]
[377181138,1754268693303,-400.0,0.00050136,120]
[377181139,1754268693313,-1250.2,0.00050136,120]
[377181140,1754268693323,-400.0,0.00050136,120]
[377181141,1754268693333,-400.0,0.00050136,120]
[377181142,1754268693343,-1000.0,0.00050136,120]
[377181143,1754268693354,-1796.88,0.00050136,120]
[377181144,1754268693363,-754.08,0.00050136,120]
[377181145,1754268693373,-400.0,0.00050136,120]
[377181146,1754268693383,-851.82,0.00050136,120]
[377181147,1754268693393,-533.01,0.00050136,120]
[377181148,1754268693402,-530.85,0.00050136,120]
[377181149,1754268693412,-400.0,0.00050136,120]
[377181150,1754268693422,-400.0,0.00050136,120]
[377181151,1754268693432,-668.86,0.00050136,120]
[377181152,1754268693442,-1655.2,0.00050136,120]
[377181153,1754268693452,-400.0,0.00050136,120]
[377181154,1754268693462,-400.0,0.00050136,120]
[377181155,1754268693472,-400.0,0.00050136,120]
[377181156,1754268693482,-427.9,0.00050136,120]
[377181157,1754268693491,-414.02,0.00050136,120]
[377181158,1754268693501,-928.38,0.00050136,120]
[377181159,1754268693511,-151.0,0.00050136,120]
[377181160,1754268693520,-461.348579,0.00050136,120]
[377181161,1754268693530,-400.0,0.00050136,120]
[377181162,1754268693540,-461.348579,0.00050136,120]
[377181163,1754268693550,-400.0,0.00050136,120]
[377181164,1754268693559,-400.0,0.00050136,120]
[377181165,1754268693569,-400.0,0.00050136,120]
[377181166,1754268693579,-400.0,0.00050136,120]
[377181167,1754268693589,-400.0,0.00050136,7]
[377181168,1754268693600,-400.0,0.00050136,120]
[377181169,1754268693609,-365.71366854,0.00050136,120]
[377181170,1754268693619,-400.0,0.00050136,120]
[377181171,1754268693628,-400.0,0.00050136,120]
[377181172,1754268693639,-1098.74,0.00050136,120]
[377181173,1754268693649,-749.65,0.00050136,120]
[377181174,1754268693659,-1053.29,0.00050136,120]
[377181175,1754268693669,-400.0,0.00050136,120]
[377181176,1754268693679,-778.27,0.00050136,120]
[377181177,1754268693691,-400.0,0.00050136,120]
[377181178,1754268693700,-400.0,0.00050136,120]
[377181179,1754268693710,-901.5,0.00050136,120]
[377181180,1754268693720,-820.28,0.00050136,120]
[377181181,1754268693730,-400.0,0.00050136,120]
[377181182,1754268693740,-400.0,0.00050136,120]
[377181183,1754268693750,-400.0,0.00050136,120]
[377181184,1754268693761,-400.0,0.00050136,120]
[377181185,1754268693770,-533.79,0.00050136,120]
[377181186,1754268693781,-400.0,0.00050136,120]
[377181187,1754268693791,-400.0,0.00050136,120]
[377181188,1754268693800,-168.395824,0.00050136,120]
[377181189,1754268693811,-494.87,0.00050136,120]
[377181190,1754268693821,-813.08,0.00050136,120]
[377181191,1754268693830,-1446.37,0.00050136,120]
[377181192,1754268693841,-444.7998205,0.00050136,120]
[377181193,1754268693851,-400.0,0.00050136,120]
[377181194,1754268693861,-400.0,0.00050136,120]
[377181195,1754268693871,-168.395824,0.00050136,120]
[377181196,1754268693881,-400.0,0.00050136,120]
[377181197,1754268693891,-225.704179,0.00050136,120]
[377181198,1754268693901,-629.0,0.00050136,120]
[377181199,1754268693911,-639.97,0.00050136,120]
[377181200,1754268693922,-993.99,0.00050136,120]
[377181201,1754268693932,-225.704179,0.00050136,120]